[Event "Late-Titled-Tuesday-Blitz-February-06-2024"]
[Site "Chess.com"]
[Date "2024.02.06"]
[Round "5"]
[White "el008"]
[Black "Godzillator"]
[Result "1-0"]
[WhiteElo "2539"]
[BlackElo "2407"]
[TimeControl "180+1"]
[EndTime "14:53:33 PST"]
[Termination "el008 won by resignation"]

1. Nf3 {[%clk 0:03:00.9]} 1... d5 {[%clk 0:02:57]} 2. b3 {[%clk 0:03:01.2]} 2...
Nf6 {[%clk 0:02:56.2]} 3. Bb2 {[%clk 0:03:01.9]} 3... c5 {[%clk 0:02:54.4]} 4.
e3 {[%clk 0:03:00.4]} 4... Nc6 {[%clk 0:02:54.6]} 5. g3 {[%clk 0:02:59.4]} 5...
Bg4 {[%clk 0:02:52.4]} 6. Bg2 {[%clk 0:02:58.5]} 6... e6 {[%clk 0:02:52.7]} 7.
O-O {[%clk 0:02:58.4]} 7... Be7 {[%clk 0:02:50.8]} 8. c4 {[%clk 0:02:57.7]} 8...
O-O {[%clk 0:02:42.7]} 9. cxd5 {[%clk 0:02:56.8]} 9... Nxd5 {[%clk 0:02:42.2]}
10. h3 {[%clk 0:02:55.7]} 10... Bh5 {[%clk 0:02:41.9]} 11. a3 {[%clk 0:02:51.6]}
11... Bf6 {[%clk 0:02:40.1]} 12. Qc1 {[%clk 0:02:50.9]} 12... Bxb2 {[%clk
0:02:37.4]} 13. Qxb2 {[%clk 0:02:51.8]} 13... Rc8 {[%clk 0:02:36.5]} 14. Nc3
{[%clk 0:02:48.9]} 14... Nf6 {[%clk 0:02:30.6]} 15. g4 {[%clk 0:02:43.4]} 15...
Bg6 {[%clk 0:02:30.1]} 16. Rac1 {[%clk 0:02:39.4]} 16... Bd3 {[%clk 0:02:27.2]}
17. Rfd1 {[%clk 0:02:39.6]} 17... b6 {[%clk 0:02:27]} 18. Ne1 {[%clk 0:02:38.3]}
18... Bg6 {[%clk 0:02:21.6]} 19. d3 {[%clk 0:02:37.4]} 19... Qd7 {[%clk
0:02:19.5]} 20. b4 {[%clk 0:02:36.6]} 20... cxb4 {[%clk 0:02:16.4]} 21. axb4
{[%clk 0:02:37.5]} 21... Rfd8 {[%clk 0:02:15.7]} 22. d4 {[%clk 0:02:33.4]} 22...
Ne7 {[%clk 0:02:10.2]} 23. Nf3 {[%clk 0:02:30.3]} 23... Ned5 {[%clk 0:02:01.5]}
24. Ne5 {[%clk 0:02:29.4]} 24... Qd6 {[%clk 0:01:55.7]} 25. Nxg6 {[%clk
0:02:04.1]} 25... hxg6 {[%clk 0:01:54.8]} 26. Nb5 {[%clk 0:01:52.3]} 26... Qxb4
{[%clk 0:01:48.7]} 27. Qxb4 {[%clk 0:01:52.5]} 27... Nxb4 {[%clk 0:01:47.7]} 28.
Nxa7 {[%clk 0:01:52.7]} 28... Rxc1 {[%clk 0:01:42.3]} 29. Rxc1 {[%clk
0:01:53.6]} 29... Nfd5 {[%clk 0:01:37.7]} 30. Nc6 {[%clk 0:01:45.6]} 30... Rc8
{[%clk 0:01:21.7]} 31. Bxd5 {[%clk 0:01:45.3]} 31... Nxd5 {[%clk 0:01:21.8]} 32.
e4 {[%clk 0:01:45.9]} 32... Nf4 {[%clk 0:01:06.9]} 33. Ne7+ {[%clk 0:01:45.2]}
33... Kf8 {[%clk 0:01:07.2]} 34. Nxg6+ {[%clk 0:01:43.2]} 34... fxg6 {[%clk
0:01:02]} 35. Rxc8+ {[%clk 0:01:44.1]} 35... Kf7 {[%clk 0:01:01.6]} 36. Rc7+
{[%clk 0:01:42.9]} 36... Kf6 {[%clk 0:01:01.3]} 37. e5+ {[%clk 0:01:41]} 37...
Kg5 {[%clk 0:01:00.8]} 38. Rxg7 {[%clk 0:01:39.7]} 38... Ne2+ {[%clk 0:01:00.5]}
39. Kg2 {[%clk 0:01:39.3]} 39... Nxd4 {[%clk 0:01:00.1]} 40. f3 {[%clk
0:01:33.7]} 40... Kf4 {[%clk 0:00:55]} 41. Rxg6 {[%clk 0:01:28.7]} 41... Kxe5
{[%clk 0:00:55.1]} 42. h4 {[%clk 0:01:26.3]} 42... b5 {[%clk 0:00:55.4]} 43. h5
{[%clk 0:01:24.3]} 43... Ne2 {[%clk 0:00:49.1]} 44. Rg5+ {[%clk 0:01:24.4]}
44... Kf6 {[%clk 0:00:48.4]} 45. Rxb5 {[%clk 0:01:25.3]} 1-0

[Event "Late-Titled-Tuesday-Blitz-February-06-2024"]
[Site "Chess.com"]
[Date "2024.02.06"]
[Round "5"]
[White "Charodej1"]
[Black "Ze-Pequeno"]
[Result "0-1"]
[WhiteElo "2260"]
[BlackElo "2129"]
[TimeControl "180+1"]
[EndTime "14:53:34 PST"]
[Termination "Ze-Pequeno won by resignation"]

1. e4 {[%clk 0:03:00.9]} 1... c5 {[%clk 0:02:56.5]} 2. Ne2 {[%clk 0:03:00.3]}
2... Nc6 {[%clk 0:02:55.9]} 3. Nbc3 {[%clk 0:03:00]} 3... g6 {[%clk 0:02:55.3]}
4. g3 {[%clk 0:02:56.8]} 4... Bg7 {[%clk 0:02:54.9]} 5. Bg2 {[%clk 0:02:57.1]}
5... d6 {[%clk 0:02:55.8]} 6. O-O {[%clk 0:02:56.9]} 6... e6 {[%clk 0:02:55.9]}
7. f4 {[%clk 0:02:56.3]} 7... Nge7 {[%clk 0:02:55.4]} 8. d3 {[%clk 0:02:55.4]}
8... O-O {[%clk 0:02:55.4]} 9. Kh1 {[%clk 0:02:55.3]} 9... Bd7 {[%clk
0:02:52.7]} 10. Be3 {[%clk 0:02:54.2]} 10... Nd4 {[%clk 0:02:52.5]} 11. Qd2
{[%clk 0:02:47.2]} 11... Bc6 {[%clk 0:02:50.2]} 12. g4 {[%clk 0:02:45.1]} 12...
f5 {[%clk 0:02:49.2]} 13. gxf5 {[%clk 0:02:43.5]} 13... exf5 {[%clk 0:02:47.8]}
14. Ng3 {[%clk 0:02:40.7]} 14... b6 {[%clk 0:02:42.7]} 15. Rae1 {[%clk
0:02:18.9]} 15... Qd7 {[%clk 0:02:41.9]} 16. Nd5 {[%clk 0:02:13.3]} 16... fxe4
{[%clk 0:02:23.8]} 17. dxe4 {[%clk 0:02:11.2]} 17... Nxd5 {[%clk 0:02:21.9]} 18.
exd5 {[%clk 0:02:10.2]} 18... Bb5 {[%clk 0:02:21.8]} 19. Rf2 {[%clk 0:01:57.1]}
19... Rae8 {[%clk 0:02:20.5]} 20. c3 {[%clk 0:01:51.7]} 20... Nf5 {[%clk
0:02:20]} 21. Nxf5 {[%clk 0:01:50.8]} 21... Qxf5 {[%clk 0:02:16.6]} 22. Qd1
{[%clk 0:01:47.7]} 22... Bd3 {[%clk 0:02:08.4]} 23. Bc1 {[%clk 0:01:38.2]} 23...
Be4 {[%clk 0:02:01.4]} 24. Rfe2 {[%clk 0:01:31.5]} 24... Bxg2+ {[%clk
0:02:01.2]} 25. Kxg2 {[%clk 0:01:32]} 25... Qg4+ {[%clk 0:01:43.1]} 26. Kh1
{[%clk 0:01:29]} 26... Qf3+ {[%clk 0:01:39.8]} 27. Kg1 {[%clk 0:01:28.8]} 27...
Rxe2 {[%clk 0:01:30.2]} 28. Qxe2 {[%clk 0:01:28.5]} 28... Qxd5 {[%clk
0:01:28.2]} 29. Qe7 {[%clk 0:01:18.3]} 29... Rf7 {[%clk 0:01:18.8]} 30. Qe8+
{[%clk 0:01:15.3]} 30... Bf8 {[%clk 0:01:19.3]} 31. a3 {[%clk 0:01:09.9]} 31...
Qf5 {[%clk 0:01:10.9]} 32. Qd8 {[%clk 0:01:02]} 32... Qg4+ {[%clk 0:01:06.3]}
33. Kf1 {[%clk 0:01:01.4]} 33... Qh3+ {[%clk 0:01:03.7]} 34. Kg1 {[%clk
0:01:01.5]} 34... Qg4+ {[%clk 0:01:04]} 35. Kf1 {[%clk 0:01:01.7]} 35... Rf5
{[%clk 0:01:04.1]} 36. Re8 {[%clk 0:00:59.6]} 36... Qd1+ {[%clk 0:01:00.7]} 37.
Kg2 {[%clk 0:00:58.6]} 37... Qxc1 {[%clk 0:00:59.1]} 0-1

[Event "Late-Titled-Tuesday-Blitz-February-06-2024"]
[Site "Chess.com"]
[Date "2024.02.06"]
[Round "5"]
[White "jup1978"]
[Black "mishanick"]
[Result "0-1"]
[WhiteElo "2517"]
[BlackElo "3042"]
[TimeControl "180+1"]
[EndTime "14:53:37 PST"]
[Termination "mishanick won by resignation"]

1. d4 {[%clk 0:02:52.5]} 1... d5 {[%clk 0:02:59.5]} 2. Nf3 {[%clk 0:02:49]} 2...
Nf6 {[%clk 0:02:58.9]} 3. c4 {[%clk 0:02:46.7]} 3... e6 {[%clk 0:02:59]} 4. g3
{[%clk 0:02:46.5]} 4... dxc4 {[%clk 0:02:54.1]} 5. Bg2 {[%clk 0:02:46.2]} 5...
a6 {[%clk 0:02:54.7]} 6. Ne5 {[%clk 0:02:45.6]} 6... Bb4+ {[%clk 0:02:54.9]} 7.
Nc3 {[%clk 0:02:44.1]} 7... Nd5 {[%clk 0:02:54.2]} 8. Bd2 {[%clk 0:02:36.9]}
8... b5 {[%clk 0:02:52.3]} 9. O-O {[%clk 0:02:30.5]} 9... Bxc3 {[%clk
0:02:48.3]} 10. bxc3 {[%clk 0:02:29.2]} 10... Bb7 {[%clk 0:02:48.6]} 11. e4
{[%clk 0:02:25.7]} 11... Ne7 {[%clk 0:02:47.5]} 12. f4 {[%clk 0:02:15.6]} 12...
Nd7 {[%clk 0:02:47.6]} 13. Qe2 {[%clk 0:02:10.2]} 13... O-O {[%clk 0:02:47]} 14.
Be3 {[%clk 0:02:07.7]} 14... f6 {[%clk 0:02:36.4]} 15. Nxd7 {[%clk 0:01:59.1]}
15... Qxd7 {[%clk 0:02:36.4]} 16. Rad1 {[%clk 0:01:57.1]} 16... f5 {[%clk
0:02:34.8]} 17. d5 {[%clk 0:01:40.9]} 17... fxe4 {[%clk 0:02:33.7]} 18. Bxe4
{[%clk 0:01:37.2]} 18... exd5 {[%clk 0:02:33.1]} 19. Bc5 {[%clk 0:01:28.2]}
19... Rae8 {[%clk 0:02:30.7]} 20. Qg2 {[%clk 0:01:09.2]} 20... Qe6 {[%clk
0:02:27.3]} 21. Bxe7 {[%clk 0:01:07]} 21... Rxe7 {[%clk 0:02:26.3]} 22. Bxd5
{[%clk 0:01:04.5]} 22... Bxd5 {[%clk 0:02:26.6]} 23. Qxd5 {[%clk 0:01:05.1]}
23... Qxd5 {[%clk 0:02:25.4]} 24. Rxd5 {[%clk 0:01:05.9]} 24... g6 {[%clk
0:02:26.1]} 25. Kg2 {[%clk 0:01:02.7]} 25... Rf6 {[%clk 0:02:23.7]} 26. Rf3
{[%clk 0:00:46.9]} 26... Rf5 {[%clk 0:02:22.4]} 27. Rd2 {[%clk 0:00:42.7]} 27...
c5 {[%clk 0:02:20.4]} 28. g4 {[%clk 0:00:42.8]} 28... Rf6 {[%clk 0:02:20.6]} 29.
Kg3 {[%clk 0:00:43.1]} 29... a5 {[%clk 0:02:18.9]} 30. Rd5 {[%clk 0:00:43]}
30... Rc6 {[%clk 0:02:19.4]} 31. f5 {[%clk 0:00:41.5]} 31... b4 {[%clk
0:02:15.1]} 32. fxg6 {[%clk 0:00:40.7]} 32... hxg6 {[%clk 0:02:15.1]} 33. Rd8+
{[%clk 0:00:32]} 33... Kg7 {[%clk 0:02:14.8]} 34. Ra8 {[%clk 0:00:32.2]} 34...
b3 {[%clk 0:02:11.3]} 35. axb3 {[%clk 0:00:31.1]} 35... cxb3 {[%clk 0:02:12.2]}
36. Rxa5 {[%clk 0:00:27.4]} 36... Rb7 {[%clk 0:02:11.9]} 37. Rf1 {[%clk
0:00:24.7]} 37... c4 {[%clk 0:02:11.2]} 38. Rb1 {[%clk 0:00:23.2]} 38... Rd6
{[%clk 0:02:11.5]} 39. h4 {[%clk 0:00:17]} 39... Rd3+ {[%clk 0:02:11.9]} 40. Kf4
{[%clk 0:00:17.4]} 40... Rxc3 {[%clk 0:02:12.7]} 41. Ra6 {[%clk 0:00:15.9]}
41... Rd3 {[%clk 0:02:12.6]} 42. Re1 {[%clk 0:00:11.9]} 42... c3 {[%clk
0:02:11.7]} 43. Ree6 {[%clk 0:00:12.1]} 43... c2 {[%clk 0:02:09.3]} 44. Rxg6+
{[%clk 0:00:12]} 44... Kf7 {[%clk 0:02:09.9]} 45. Rgf6+ {[%clk 0:00:11.8]} 45...
Ke7 {[%clk 0:02:10.4]} 46. Rfc6 {[%clk 0:00:08]} 46... b2 {[%clk 0:02:10.4]} 47.
Rxc2 {[%clk 0:00:05.7]} 47... b1=Q {[%clk 0:02:10.5]} 0-1

[Event "Late-Titled-Tuesday-Blitz-February-06-2024"]
[Site "Chess.com"]
[Date "2024.02.06"]
[Round "5"]
[White "Adar_07"]
[Black "wanyaland"]
[Result "1-0"]
[WhiteElo "2711"]
[BlackElo "2483"]
[TimeControl "180+1"]
[EndTime "14:53:45 PST"]
[Termination "Adar_07 won by resignation"]

1. e4 {[%clk 0:03:00.9]} 1... c5 {[%clk 0:02:29]} 2. Nf3 {[%clk 0:03:00.3]} 2...
e6 {[%clk 0:02:28]} 3. d4 {[%clk 0:02:59.6]} 3... cxd4 {[%clk 0:02:28.2]} 4.
Nxd4 {[%clk 0:03:00.5]} 4... Nc6 {[%clk 0:02:28.6]} 5. Nc3 {[%clk 0:03:00.3]}
5... Qc7 {[%clk 0:02:28.3]} 6. Be3 {[%clk 0:02:59.4]} 6... a6 {[%clk 0:02:28.6]}
7. Qf3 {[%clk 0:02:56.6]} 7... b5 {[%clk 0:02:27]} 8. Nxc6 {[%clk 0:02:51.4]}
8... dxc6 {[%clk 0:02:26.9]} 9. O-O-O {[%clk 0:02:49.7]} 9... Bb7 {[%clk
0:02:25.4]} 10. Qg3 {[%clk 0:02:44.9]} 10... Qxg3 {[%clk 0:02:14.4]} 11. hxg3
{[%clk 0:02:44]} 11... c5 {[%clk 0:02:14.2]} 12. Nxb5 {[%clk 0:02:42.7]} 12...
Rc8 {[%clk 0:02:09.2]} 13. Nd6+ {[%clk 0:02:40.3]} 13... Bxd6 {[%clk 0:02:08.1]}
14. Rxd6 {[%clk 0:02:41.2]} 14... Ke7 {[%clk 0:02:05.8]} 15. e5 {[%clk
0:02:39.1]} 15... Nh6 {[%clk 0:01:41.9]} 16. Bxa6 {[%clk 0:02:28.8]} 16... Bxg2
{[%clk 0:01:32.4]} 17. Bxh6 {[%clk 0:02:02.7]} 17... Bxh1 {[%clk 0:01:27.4]} 18.
Bxg7 {[%clk 0:02:02.6]} 18... f5 {[%clk 0:01:15.5]} 19. Bf6+ {[%clk 0:01:56.6]}
19... Kf7 {[%clk 0:01:15.1]} 20. Rd7+ {[%clk 0:01:53.2]} 20... Kg6 {[%clk
0:01:14.9]} 21. Rg7+ {[%clk 0:01:43.3]} 21... Kh6 {[%clk 0:01:14.7]} 22. g4
{[%clk 0:01:38.6]} 22... Ra8 {[%clk 0:01:04.3]} 23. g5+ {[%clk 0:01:21.5]} 23...
Kh5 {[%clk 0:01:02.9]} 24. Be2+ {[%clk 0:01:22.4]} 24... Kh4 {[%clk 0:01:02.8]}
25. g6+ {[%clk 0:01:22.5]} 25... Kh3 {[%clk 0:01:03]} 26. Rxh7+ {[%clk 0:01:22]}
26... Rxh7 {[%clk 0:01:01.1]} 27. gxh7 {[%clk 0:01:22.9]} 27... Kg2 {[%clk
0:00:54]} 28. Bc4 {[%clk 0:01:14]} 28... Kxf2 {[%clk 0:00:50]} 29. Bxe6 {[%clk
0:01:13.8]} 29... f4 {[%clk 0:00:50.3]} 30. Bg8 {[%clk 0:01:13.4]} 1-0

[Event "Late-Titled-Tuesday-Blitz-February-06-2024"]
[Site "Chess.com"]
[Date "2024.02.06"]
[Round "5"]
[White "ljuks68"]
[Black "Mazetovic"]
[Result "0-1"]
[WhiteElo "2432"]
[BlackElo "2614"]
[TimeControl "180+1"]
[EndTime "14:53:49 PST"]
[Termination "Mazetovic won on time"]

1. e4 {[%clk 0:02:49.5]} 1... c5 {[%clk 0:02:59.1]} 2. Nf3 {[%clk 0:02:49.8]}
2... Nc6 {[%clk 0:02:59.4]} 3. d4 {[%clk 0:02:50.4]} 3... cxd4 {[%clk
0:03:00.3]} 4. Nxd4 {[%clk 0:02:50.9]} 4... g6 {[%clk 0:03:01]} 5. c4 {[%clk
0:02:50.9]} 5... Bg7 {[%clk 0:03:01.5]} 6. Be3 {[%clk 0:02:51.3]} 6... Nf6
{[%clk 0:03:01.8]} 7. Nc3 {[%clk 0:02:51.6]} 7... O-O {[%clk 0:03:00.2]} 8. Be2
{[%clk 0:02:51.7]} 8... d6 {[%clk 0:03:00.2]} 9. O-O {[%clk 0:02:51.2]} 9... Bd7
{[%clk 0:03:00.7]} 10. Qd2 {[%clk 0:02:45.6]} 10... Nxd4 {[%clk 0:02:52.2]} 11.
Bxd4 {[%clk 0:02:44.4]} 11... Bc6 {[%clk 0:02:52.4]} 12. f3 {[%clk 0:02:39.9]}
12... a5 {[%clk 0:02:51.6]} 13. b3 {[%clk 0:02:34]} 13... Nd7 {[%clk 0:02:49.8]}
14. Be3 {[%clk 0:02:31.8]} 14... Nc5 {[%clk 0:02:46.5]} 15. Rab1 {[%clk
0:02:24.9]} 15... Be5 {[%clk 0:02:37.9]} 16. f4 {[%clk 0:02:13.6]} 16... Bxc3
{[%clk 0:02:36.6]} 17. Qxc3 {[%clk 0:02:12.3]} 17... Nxe4 {[%clk 0:02:35.9]} 18.
Qd4 {[%clk 0:02:00.9]} 18... f5 {[%clk 0:02:29]} 19. a3 {[%clk 0:01:11.8]} 19...
Qc7 {[%clk 0:02:26.9]} 20. b4 {[%clk 0:01:03.1]} 20... e5 {[%clk 0:02:25.9]} 21.
Qb2 {[%clk 0:01:01.5]} 21... axb4 {[%clk 0:02:15.6]} 22. axb4 {[%clk 0:01:01.2]}
22... b6 {[%clk 0:02:15.8]} 23. c5 {[%clk 0:00:30.7]} 23... bxc5 {[%clk
0:01:59.6]} 24. bxc5 {[%clk 0:00:30.4]} 24... exf4 {[%clk 0:01:38.9]} 25. cxd6
{[%clk 0:00:18]} 25... Qf7 {[%clk 0:01:13.5]} 26. Bxf4 {[%clk 0:00:05.1]} 26...
Ra2 {[%clk 0:01:12.8]} 0-1

[Event "Late-Titled-Tuesday-Blitz-February-06-2024"]
[Site "Chess.com"]
[Date "2024.02.06"]
[Round "5"]
[White "DavidGavrilescu18"]
[Black "GiorgianBarbosa"]
[Result "1-0"]
[WhiteElo "2781"]
[BlackElo "2482"]
[TimeControl "180+1"]
[EndTime "14:53:51 PST"]
[Termination "DavidGavrilescu18 won by checkmate"]

1. e4 {[%clk 0:03:00.9]} 1... c5 {[%clk 0:02:56.9]} 2. Nf3 {[%clk 0:02:56.6]}
2... g6 {[%clk 0:02:57.8]} 3. c3 {[%clk 0:02:56.2]} 3... Bg7 {[%clk 0:02:57.6]}
4. d4 {[%clk 0:02:56.4]} 4... cxd4 {[%clk 0:02:58.5]} 5. cxd4 {[%clk 0:02:57.3]}
5... d5 {[%clk 0:02:58.9]} 6. e5 {[%clk 0:02:58]} 6... Bg4 {[%clk 0:02:57.7]} 7.
Bb5+ {[%clk 0:02:50.6]} 7... Nc6 {[%clk 0:02:57]} 8. Bxc6+ {[%clk 0:02:50.4]}
8... bxc6 {[%clk 0:02:57.9]} 9. Nbd2 {[%clk 0:02:50.9]} 9... e6 {[%clk
0:02:58.2]} 10. O-O {[%clk 0:02:50.8]} 10... Ne7 {[%clk 0:02:58.2]} 11. b3
{[%clk 0:02:50.2]} 11... O-O {[%clk 0:02:58]} 12. Ba3 {[%clk 0:02:50.3]} 12...
Qd7 {[%clk 0:02:50.8]} 13. h3 {[%clk 0:02:49.2]} 13... Bxf3 {[%clk 0:02:47.4]}
14. Nxf3 {[%clk 0:02:50.1]} 14... f6 {[%clk 0:02:38.7]} 15. Re1 {[%clk
0:02:45.2]} 15... fxe5 {[%clk 0:02:32.4]} 16. Nxe5 {[%clk 0:02:42.9]} 16... Bxe5
{[%clk 0:02:31.2]} 17. Rxe5 {[%clk 0:02:43.8]} 17... Rf5 {[%clk 0:02:31.1]} 18.
Qe2 {[%clk 0:02:37.6]} 18... Rxe5 {[%clk 0:02:21.3]} 19. Qxe5 {[%clk 0:02:38.5]}
19... Nf5 {[%clk 0:02:18.7]} 20. Re1 {[%clk 0:02:38.2]} 20... Re8 {[%clk
0:02:16]} 21. g4 {[%clk 0:02:01.6]} 21... Nh6 {[%clk 0:01:49.4]} 22. Re3 {[%clk
0:01:56.7]} 22... Nf7 {[%clk 0:01:47.4]} 23. Qf6 {[%clk 0:01:56.4]} 23... e5
{[%clk 0:01:25.8]} 24. dxe5 {[%clk 0:01:49.6]} 24... Re6 {[%clk 0:01:25.2]} 25.
Qf4 {[%clk 0:01:46]} 25... d4 {[%clk 0:01:09.2]} 26. Rd3 {[%clk 0:01:43.6]}
26... Rxe5 {[%clk 0:00:58.3]} 27. Rxd4 {[%clk 0:01:43.6]} 27... Re1+ {[%clk
0:00:51.9]} 28. Kh2 {[%clk 0:01:39.5]} 28... Qe8 {[%clk 0:00:45.7]} 29. Bb2
{[%clk 0:01:26.5]} 29... Re2 {[%clk 0:00:34.2]} 30. Bc3 {[%clk 0:01:22.5]} 30...
Qe5 {[%clk 0:00:20.6]} 31. Rd8+ {[%clk 0:01:20.7]} 31... Kg7 {[%clk 0:00:12.8]}
32. Bxe5+ {[%clk 0:01:17.9]} 32... Nxe5 {[%clk 0:00:13.7]} 33. Qf8# {[%clk
0:01:16.1]} 1-0

[Event "Late-Titled-Tuesday-Blitz-February-06-2024"]
[Site "Chess.com"]
[Date "2024.02.06"]
[Round "5"]
[White "Rawnsdale"]
[Black "lachesisQ"]
[Result "0-1"]
[WhiteElo "2519"]
[BlackElo "3059"]
[TimeControl "180+1"]
[EndTime "14:53:51 PST"]
[Termination "lachesisQ won on time"]

1. Nf3 {[%clk 0:03:00.9]} 1... g6 {[%clk 0:02:58.9]} 2. g3 {[%clk 0:03:00.5]}
2... Bg7 {[%clk 0:02:59.1]} 3. d4 {[%clk 0:03:00.6]} 3... d5 {[%clk 0:02:58.7]}
4. Bg2 {[%clk 0:03:00.8]} 4... c6 {[%clk 0:02:59.1]} 5. O-O {[%clk 0:03:00.8]}
5... Nf6 {[%clk 0:02:59.4]} 6. c4 {[%clk 0:03:01]} 6... dxc4 {[%clk 0:02:59.5]}
7. a4 {[%clk 0:02:52.5]} 7... h6 {[%clk 0:02:58.9]} 8. Na3 {[%clk 0:02:44.9]}
8... Be6 {[%clk 0:02:58.8]} 9. Ne5 {[%clk 0:02:36.1]} 9... O-O {[%clk
0:02:57.3]} 10. Naxc4 {[%clk 0:02:33.2]} 10... Na6 {[%clk 0:02:57.3]} 11. e4
{[%clk 0:02:07.2]} 11... Nb4 {[%clk 0:02:54.6]} 12. Be3 {[%clk 0:02:02.3]} 12...
a5 {[%clk 0:02:53.6]} 13. Rc1 {[%clk 0:01:53.4]} 13... Kh7 {[%clk 0:02:52.8]}
14. Qe2 {[%clk 0:01:50.5]} 14... Bxc4 {[%clk 0:02:35.4]} 15. Qxc4 {[%clk
0:01:39.4]} 15... e6 {[%clk 0:02:33.9]} 16. Rfd1 {[%clk 0:01:37.1]} 16... Nd7
{[%clk 0:02:33.8]} 17. Nxd7 {[%clk 0:01:26.7]} 17... Qxd7 {[%clk 0:02:34.7]} 18.
d5 {[%clk 0:01:26.2]} 18... exd5 {[%clk 0:02:24]} 19. exd5 {[%clk 0:01:26.1]}
19... cxd5 {[%clk 0:02:09.3]} 20. Bxd5 {[%clk 0:01:22.1]} 20... Bxb2 {[%clk
0:02:08.9]} 21. Rb1 {[%clk 0:01:11.9]} 21... Bg7 {[%clk 0:02:08.3]} 22. Bg2
{[%clk 0:00:48]} 22... Qxa4 {[%clk 0:01:58.7]} 23. Bxb7 {[%clk 0:00:44.2]} 23...
Rab8 {[%clk 0:01:58.8]} 24. Bg2 {[%clk 0:00:44.3]} 24... Rbc8 {[%clk 0:01:41.9]}
25. Qf4 {[%clk 0:00:32.4]} 25... Qb5 {[%clk 0:01:40]} 26. h4 {[%clk 0:00:30.3]}
26... h5 {[%clk 0:01:34.7]} 27. g4 {[%clk 0:00:17.9]} 27... Rc4 {[%clk
0:01:32.8]} 28. Qf3 {[%clk 0:00:04.7]} 28... Rxg4 {[%clk 0:01:31.9]} 29. Bg5
{[%clk 0:00:04.3]} 29... Qc5 {[%clk 0:01:26.8]} 30. Kh2 {[%clk 0:00:02.8]} 30...
Nc2 {[%clk 0:01:22.1]} 31. Bh3 {[%clk 0:00:01.6]} 31... Qe5+ {[%clk 0:01:20.6]}
0-1

[Event "Late-Titled-Tuesday-Blitz-February-06-2024"]
[Site "Chess.com"]
[Date "2024.02.06"]
[Round "5"]
[White "bilelou"]
[Black "Arteler"]
[Result "1-0"]
[WhiteElo "2745"]
[BlackElo "2512"]
[TimeControl "180+1"]
[EndTime "14:53:52 PST"]
[Termination "bilelou won by resignation"]

1. e4 {[%clk 0:03:00.9]} 1... e6 {[%clk 0:03:00.2]} 2. d4 {[%clk 0:03:00.9]}
2... d5 {[%clk 0:03:00.9]} 3. e5 {[%clk 0:03:01.6]} 3... c5 {[%clk 0:03:00.8]}
4. c3 {[%clk 0:03:02.5]} 4... Qb6 {[%clk 0:03:01.3]} 5. g3 {[%clk 0:03:02.8]}
5... Nc6 {[%clk 0:03:01.1]} 6. Ne2 {[%clk 0:03:03.4]} 6... Nh6 {[%clk 0:02:54]}
7. Bh3 {[%clk 0:02:58.9]} 7... Nf5 {[%clk 0:02:50]} 8. Bxf5 {[%clk 0:02:57.9]}
8... exf5 {[%clk 0:02:50.9]} 9. O-O {[%clk 0:02:57.9]} 9... Be6 {[%clk
0:02:48.7]} 10. a3 {[%clk 0:02:46]} 10... cxd4 {[%clk 0:02:46.7]} 11. cxd4
{[%clk 0:02:45.8]} 11... Be7 {[%clk 0:02:46.6]} 12. Nbc3 {[%clk 0:02:45.9]}
12... O-O {[%clk 0:02:44.5]} 13. b4 {[%clk 0:02:45.5]} 13... Rac8 {[%clk
0:02:43.2]} 14. Be3 {[%clk 0:02:44.6]} 14... Qd8 {[%clk 0:02:41.7]} 15. Qd2
{[%clk 0:02:41.5]} 15... g5 {[%clk 0:02:34.4]} 16. f4 {[%clk 0:02:27.6]} 16...
g4 {[%clk 0:02:30.7]} 17. Rfc1 {[%clk 0:02:22.8]} 17... Nb8 {[%clk 0:02:16.9]}
18. Na4 {[%clk 0:02:18.5]} 18... Nd7 {[%clk 0:02:02.7]} 19. Nc5 {[%clk
0:02:16.1]} 19... b5 {[%clk 0:02:03]} 20. Qd3 {[%clk 0:02:12.2]} 20... Qb6
{[%clk 0:02:01.3]} 21. Nc3 {[%clk 0:02:05]} 21... a6 {[%clk 0:02:01.1]} 22. Nxd7
{[%clk 0:01:52.8]} 22... Bxd7 {[%clk 0:02:02]} 23. Nxd5 {[%clk 0:01:51.8]} 23...
Qd8 {[%clk 0:01:56.3]} 24. Nxe7+ {[%clk 0:01:52]} 24... Qxe7 {[%clk 0:01:56.3]}
25. d5 {[%clk 0:01:52.7]} 25... Rfd8 {[%clk 0:01:47.4]} 26. Bc5 {[%clk
0:01:50.3]} 26... Qe8 {[%clk 0:01:45.4]} 27. Bd6 {[%clk 0:01:46.5]} 27... Rxc1+
{[%clk 0:01:41.3]} 28. Rxc1 {[%clk 0:01:44]} 28... Bc8 {[%clk 0:01:42.2]} 29.
Qd4 {[%clk 0:01:30.1]} 29... Bb7 {[%clk 0:01:38.7]} 30. Kf2 {[%clk 0:01:27.9]}
30... Rc8 {[%clk 0:01:37.3]} 31. Rc5 {[%clk 0:01:24.5]} 31... h5 {[%clk
0:01:30]} 32. Qc3 {[%clk 0:01:03.8]} 32... Kh7 {[%clk 0:01:20.6]} 33. Rxc8
{[%clk 0:01:02.9]} 33... Qxc8 {[%clk 0:01:19.7]} 34. Qxc8 {[%clk 0:01:02]} 34...
Bxc8 {[%clk 0:01:20.3]} 35. Ke3 {[%clk 0:01:02.6]} 35... Kg6 {[%clk 0:01:14.9]}
36. Be7 {[%clk 0:01:01.3]} 36... f6 {[%clk 0:01:12.4]} 37. Bxf6 {[%clk
0:00:56.2]} 37... Bb7 {[%clk 0:01:12.8]} 38. Kd4 {[%clk 0:00:55.3]} 38... Kf7
{[%clk 0:01:13.7]} 39. Bh4 {[%clk 0:00:55.5]} 39... Ba8 {[%clk 0:01:13]} 40. Kc5
{[%clk 0:00:55.7]} 40... Bb7 {[%clk 0:01:13.2]} 41. Kd6 {[%clk 0:00:52.2]} 41...
Ba8 {[%clk 0:01:13.7]} 42. Bg5 {[%clk 0:00:52.4]} 42... Bb7 {[%clk 0:01:11.7]}
43. e6+ {[%clk 0:00:53.1]} 43... Ke8 {[%clk 0:01:11.8]} 44. Bh4 {[%clk 0:00:54]}
44... Ba8 {[%clk 0:01:11.8]} 45. Ke5 {[%clk 0:00:48.7]} 45... Bb7 {[%clk
0:01:12.4]} 46. d6 {[%clk 0:00:48.2]} 1-0